{"text_format":"1","workbook":"xlsx","n_sheets":3,"sheets":["Notenbuch","Zusammenfassung","Benotungskriterien"],"not_rendered":{"charts":1,"images":1,"macros":1,"external_links":0,"defined_names":11,"comments":0,"pivot_tables":0},"unopened":[],"bounds":{"document_bytes":16777216,"sheet_cells":100000,"rows_first":2000,"rows_last":500,"rows_between":2000,"halvings":0,"cell_chars":16384,"cell_head_chars":4096},"cells_cut":0,"cells_raw":0,"read":"whole","date_system":"1900"}

{"sheet":"Notenbuch","index":0,"n_rows":8,"n_cols":9,"rows_kept":8,"cut":false,"hidden":false,"merged":[]}
[null,"Name der Unterrichtsveranstaltung"]
[null,"Name des Lehrers",null,null,null,"Datum der Klassenarbeit ","2011-01-18","2011-01-25","2011-02-01"]
[null,null,null,null,"Mögliche Gesamtpunktzahl ",{"$f":"SUM(KlassenarbeitenPunkteGesamt[#Data])","v":90},20,20,50]
[null,"Name des Schülers","Leistung","Note","%","Erreichte Gesamt-punktzahl","Klassenarbeit 1","Klassenarbeit 2","Referat, erster Entwurf"]
[null,"Schüler 1",{"$f":"SchülerDaten[[#This Row],[Erreichte Gesamt-punktzahl]]","v":90},{"$f":"IFERROR(VLOOKUP(SchülerDaten[[#This Row],[%]],BenotungsTabelle[],2,TRUE),\"\")","v":"Exzellent"},{"$f":"IFERROR(SchülerDaten[[#This Row],[Erreichte Gesamt-punktzahl]]/PunktzahlGesamt,\"\")","v":1},{"$f":"IFERROR(SUM(SchülerDaten[[#This Row],[Klassenarbeit 1]]:OFFSET(F5,,COUNTA(KlassenarbeitenPunkteGesamt[]))),\"\")","v":90},20,20,50]
[null,"Schüler 2",{"$f":"SchülerDaten[[#This Row],[Erreichte Gesamt-punktzahl]]","v":60},{"$f":"IFERROR(VLOOKUP(SchülerDaten[[#This Row],[%]],BenotungsTabelle[],2,TRUE),\"\")","v":"Mangelhaft"},{"$f":"IFERROR(SchülerDaten[[#This Row],[Erreichte Gesamt-punktzahl]]/PunktzahlGesamt,\"\")","v":0.66666666666666663},{"$f":"IFERROR(SUM(SchülerDaten[[#This Row],[Klassenarbeit 1]]:OFFSET(F6,,COUNTA(KlassenarbeitenPunkteGesamt[]))),\"\")","v":60},10,10,40]
[null,"Schüler 3",{"$f":"SchülerDaten[[#This Row],[Erreichte Gesamt-punktzahl]]","v":75},{"$f":"IFERROR(VLOOKUP(SchülerDaten[[#This Row],[%]],BenotungsTabelle[],2,TRUE),\"\")","v":"Gut"},{"$f":"IFERROR(SchülerDaten[[#This Row],[Erreichte Gesamt-punktzahl]]/PunktzahlGesamt,\"\")","v":0.83333333333333337},{"$f":"IFERROR(SUM(SchülerDaten[[#This Row],[Klassenarbeit 1]]:OFFSET(F7,,COUNTA(KlassenarbeitenPunkteGesamt[]))),\"\")","v":75},20,15,40]
[null,"Notendurchschnitt/Punkte",null,{"$f":"IFERROR(VLOOKUP(SchülerDaten[[#Totals],[%]],BenotungsTabelle[],2,TRUE),\"\")","v":"Gut"},{"$f":"SUBTOTAL(101,[%])","v":0.83333333333333337},{"$f":"SUBTOTAL(101,[Erreichte Gesamt-punktzahl])","v":75},{"$f":"SUBTOTAL(101,[Klassenarbeit 1])","v":16.666666666666668},{"$f":"SUBTOTAL(101,[Klassenarbeit 2])","v":15},{"$f":"SUBTOTAL(101,[Referat, erster Entwurf])","v":43.333333333333336}]

{"sheet":"Zusammenfassung","index":1,"n_rows":51,"n_cols":8,"rows_kept":51,"cut":false,"hidden":false,"merged":[[7,1,7,3],[11,1,11,2],[35,1,44,7],[0,0,0,4]]}
["Name Ihrer Schule"]
[null,{"$f":"NameDesLehrers","v":"Name des Lehrers"}]
[null,{"$f":"NameDerKlasse","v":{"$error":"#NAME?"}}]
[null,"Ergebnisse bis heute"]
[null,"2011-09-22"]
[]
[null,"Name des Schülers:"]
[null,"Schüler 1"]
[]
[]
[null,"Rang im Klassenvergleich",null,"Benotung","Prozentsatz","Punktzahl des Schülers","Punktzahl gesamt","Notendurchschnitt"]
[null,{"$f":"IFERROR(_xlfn.RANK.EQ(VLOOKUP(B8,SchülerDaten[],5,FALSE),SchülerDaten[Erreichte Gesamt-punktzahl]) & \" out of \"&COUNTA(SchülerDaten[Name des Schülers]) & \" students\",\"\")","v":""},null,{"$f":"IFERROR(VLOOKUP(NameDesSchülers,SchülerDaten[],3,FALSE),\"\")","v":"Exzellent"},{"$f":"IFERROR(VLOOKUP(NameDesSchülers,SchülerDaten[],4,FALSE),\"\")","v":1},{"$f":"IFERROR(VLOOKUP(NameDesSchülers,SchülerDaten[],5,FALSE),\"\")","v":90},{"$f":"PunktzahlGesamt","v":90},{"$f":"IFERROR(VLOOKUP(E12,BenotungsTabelle[],3,TRUE),\"\")","v":15}]
[]
[]
[]
[]
[]
[]
[]
[]
[]
[]
[]
[]
[]
[]
[]
[]
[]
[]
[]
[]
[]
[]
[null,"Kommentare des Lehrers"]
[]
[]
[]
[]
[]
[]
[]
[]
[]
[]
[]
[]
[null,"Unterschrift der Eltern (sofern erforderlich)"]
[]
[]
[null,"X",null,null,null,"Datum:"]

{"sheet":"Benotungskriterien","index":2,"n_rows":20,"n_cols":4,"rows_kept":20,"cut":false,"hidden":false,"merged":[[4,1,4,3],[2,1,2,4]]}
[null,"Notenberechnung"]
[]
[null,"Geben Sie den Prozentbereich für jede Note in die nachstehende Tabelle ein, um die Vorlage gemäß Ihren Benotungskriterien anzupassen. "]
[]
[null,"NOTE UND NOTENDURCHSCHNITTSTABELLE\n(Wird verwendet, um die Noten des Schülers auf dem Arbeitsblatt \"Notenbuch\" zu berechnen)"]
[null,"Punktzahl","Erzielte Note","Notendurchschnitt"]
[null,0,"Ungenügend",0]
[null,0.6,"Mangelhaft bis ungenügend",4]
[null,0.63,"Mangelhaft",5]
[null,0.67,"Ausreichend",6]
[null,0.7,"Befriedigend bis ausreichend",7]
[null,0.73,"Befriedigend",8]
[null,0.77,"Befriedigend bis gut",9]
[null,0.8,"Gut bis befriedigend",10]
[null,0.83,"Gut",11]
[null,0.87,"Gut bis sehr gut",12]
[null,0.9,"Sehr gut bis gut",13]
[null,0.93,"Sehr gut",14]
[null,0.97,"Exzellent",15]
[null,"Punktzahl und Notendurchschnitt müssen in aufsteigender Reihenfolge eingegeben werden."]